[Event "Titled Tuesday Blitz February 21 Early 2023"]
[White "Burdalev, Kirill"]
[Black "Tarnowska, Aleksandra"]
[WhiteFideId "14121913"]
[BlackFideId "1180967"]
[WhiteElo "2368"]
[BlackElo "1835"]
[Result "1-0"]
[Round "10"]
[TimeControl "180+2"]
[Date "2023.02.21"]
[WhiteClock "0:00:23"]
[BlackClock "0:00:02"]

1. d4 {[%clk 0:03:00]}  d5 {[%clk 0:02:59]} 2. c4 {[%clk 0:02:58]}  e6 {[%clk 0:02:58]} 3. g3 {[%clk 0:02:57]}  Nf6 {[%clk 0:02:58]} 4. Bg2 {[%clk 0:02:55]}  Bb4+ {[%clk 0:02:58]} 5. Bd2 {[%clk 0:02:53]}  Be7 {[%clk 0:02:59]} 6. Nf3 {[%clk 0:02:51]}  O-O {[%clk 0:03:00]} 7. O-O {[%clk 0:02:51]}  dxc4 {[%clk 0:03:00]} 8. Qc2 {[%clk 0:02:49]}  c5 {[%clk 0:02:51]} 9. dxc5 {[%clk 0:02:45]}  Bxc5 {[%clk 0:02:51]} 10. Qxc4 {[%clk 0:02:44]}  Qb6 {[%clk 0:02:35]} 11. Nc3 {[%clk 0:02:38]}  Bd7 {[%clk 0:02:34]} 12. Na4 {[%clk 0:02:25]}  Bxa4 {[%clk 0:02:31]} 13. Qxa4 {[%clk 0:02:26]}  Nc6 {[%clk 0:02:11]} 14. b4 {[%clk 0:02:15]}  Be7 {[%clk 0:01:43]} 15. b5 {[%clk 0:02:13]}  Nd8 {[%clk 0:01:14]} 16. Ba5 {[%clk 0:02:09]}  Qd6 {[%clk 0:01:10]} 17. Rfd1 {[%clk 0:02:06]}  Qa3 {[%clk 0:01:10]} 18. Qxa3 {[%clk 0:02:03]}  Bxa3 {[%clk 0:01:11]} 19. Rab1 {[%clk 0:01:52]}  Nd5 {[%clk 0:00:48]} 20. Ne5 {[%clk 0:01:46]}  b6 {[%clk 0:00:39]} 21. Be1 {[%clk 0:01:40]}  f6 {[%clk 0:00:36]} 22. Nc4 {[%clk 0:01:33]}  Bc5 {[%clk 0:00:26]} 23. Rxd5 {[%clk 0:01:29]}  exd5 {[%clk 0:00:23]} 24. Bxd5+ {[%clk 0:01:28]}  Nf7 {[%clk 0:00:23]} 25. Bxa8 {[%clk 0:01:26]}  Rxa8 {[%clk 0:00:24]} 26. Rd1 {[%clk 0:01:15]}  Re8 {[%clk 0:00:20]} 27. Kf1 {[%clk 0:01:14]}  Ng5 {[%clk 0:00:17]} 28. f3 {[%clk 0:01:09]}  Re7 {[%clk 0:00:16]} 29. h4 {[%clk 0:00:59]}  Ne6 {[%clk 0:00:14]} 30. Bf2 {[%clk 0:00:54]}  Bb4 {[%clk 0:00:06]} 31. e4 {[%clk 0:00:50]}  Kf7 {[%clk 0:00:06]} 32. Nd6+ {[%clk 0:00:47]}  Bxd6 {[%clk 0:00:06]} 33. Rxd6 {[%clk 0:00:48]}  g5 {[%clk 0:00:06]} 34. hxg5 {[%clk 0:00:41]}  Nxg5 {[%clk 0:00:04]} 35. Ke2 {[%clk 0:00:37]}  Rc7 {[%clk 0:00:04]} 36. Be3 {[%clk 0:00:32]}  Rc2+ {[%clk 0:00:03]} 37. Rd2 {[%clk 0:00:31]}  Rc4 {[%clk 0:00:01]} 38. Bxg5 {[%clk 0:00:28]}  fxg5 {[%clk 0:00:02]} 39. Rd7+ {[%clk 0:00:28]}  Ke6 {[%clk 0:00:02]} 40. Rxa7 {[%clk 0:00:27]}  Rb4 {[%clk 0:00:02]} 41. Rxh7 {[%clk 0:00:25]}  Rxb5 {[%clk 0:00:02]} 42. f4 {[%clk 0:00:25]}  Rb2+ {[%clk 0:00:02]} 43. Kf3 {[%clk 0:00:25]}  gxf4 {[%clk 0:00:03]} 44. gxf4 {[%clk 0:00:25]}  Rxa2 {[%clk 0:00:03]} 45. Rh6+ {[%clk 0:00:25]}  Kf7 {[%clk 0:00:03]} 46. Rxb6 {[%clk 0:00:26]}  Ra3+ {[%clk 0:00:04]} 47. Kg4 {[%clk 0:00:26]}  Re3 {[%clk 0:00:04]} 48. e5 {[%clk 0:00:26]}  Re1 {[%clk 0:00:04]} 49. Kf5 {[%clk 0:00:26]}  Ke7 {[%clk 0:00:05]} 50. Rb7+ {[%clk 0:00:26]}  Kd8 {[%clk 0:00:04]} 51. Kf6 {[%clk 0:00:26]}  Rf1 {[%clk 0:00:04]} 52. f5 {[%clk 0:00:26]}  Rh1 {[%clk 0:00:04]} 53. e6 {[%clk 0:00:26]}  Rh6+ {[%clk 0:00:03]} 54. Ke5 {[%clk 0:00:26]}  Rh1 {[%clk 0:00:03]} 55. Ra7 {[%clk 0:00:26]}  Re1+ {[%clk 0:00:02]} 56. Kf6 {[%clk 0:00:24]}  Rh1 {[%clk 0:00:02]} 57. e7+ {[%clk 0:00:23]}  Ke8 {[%clk 0:00:02]} 58. Ra8+ {[%clk 0:00:23]}  Kd7 {[%clk 0:00:02]} 59. e8=Q+ {[%clk 0:00:23]}  Kc7 {[%clk 0:00:02]} 60. Qe7+ {[%clk 0:00:23]} 1-0


[Site "https://www.chess.com"]

[Event "Titled Tuesday Blitz February 21 Early 2023"]
[White "Ciuffoletti, Paolo"]
[Black "Better_Chess_Faster"]
[WhiteFideId "807630"]
[WhiteElo "2106"]
[BlackElo "1968"]
[Result "1-0"]
[Round "10"]
[TimeControl "180+2"]
[Date "2023.02.21"]
[WhiteClock "0:00:29"]
[BlackClock "0:01:08"]

1. e4 {[%clk 0:03:00]}  Nf6 {[%clk 0:02:59]} 2. e5 {[%clk 0:02:59]}  Nd5 {[%clk 0:02:59]} 3. c4 {[%clk 0:02:57]}  Nb6 {[%clk 0:02:58]} 4. d4 {[%clk 0:02:58]}  d6 {[%clk 0:02:58]} 5. f4 {[%clk 0:02:57]}  g6 {[%clk 0:02:56]} 6. Nc3 {[%clk 0:02:55]}  Bg7 {[%clk 0:02:56]} 7. Be3 {[%clk 0:02:54]}  O-O {[%clk 0:02:54]} 8. Nf3 {[%clk 0:02:53]}  dxe5 {[%clk 0:02:53]} 9. fxe5 {[%clk 0:02:51]}  c5 {[%clk 0:02:52]} 10. dxc5 {[%clk 0:02:28]}  Qxd1+ {[%clk 0:02:51]} 11. Rxd1 {[%clk 0:02:27]}  N6d7 {[%clk 0:02:50]} 12. Nd5 {[%clk 0:02:26]}  Nc6 {[%clk 0:02:44]} 13. e6 {[%clk 0:02:14]}  fxe6 {[%clk 0:02:39]} 14. Nc7 {[%clk 0:02:13]}  Rb8 {[%clk 0:02:35]} 15. Nxe6 {[%clk 0:02:12]}  Bxb2 {[%clk 0:02:24]} 16. Nxf8 {[%clk 0:02:09]}  Nxf8 {[%clk 0:02:18]} 17. Bd3 {[%clk 0:01:56]}  Bc3+ {[%clk 0:02:13]} 18. Bd2 {[%clk 0:01:50]}  Bg7 {[%clk 0:02:03]} 19. O-O {[%clk 0:01:49]}  e5 {[%clk 0:02:03]} 20. Be4 {[%clk 0:01:40]}  Ne6 {[%clk 0:02:01]} 21. Bd5 {[%clk 0:01:29]}  Kh8 {[%clk 0:02:00]} 22. Ng5 {[%clk 0:01:27]}  Nxg5 {[%clk 0:01:55]} 23. Bxg5 {[%clk 0:01:25]}  Nd4 {[%clk 0:01:51]} 24. Bf6 {[%clk 0:01:17]}  Bg4 {[%clk 0:01:45]} 25. Bxg7+ {[%clk 0:01:11]}  Kxg7 {[%clk 0:01:46]} 26. Rd3 {[%clk 0:01:05]}  Kh6 {[%clk 0:01:29]} 27. Rf7 {[%clk 0:00:56]}  Ne2+ {[%clk 0:01:27]} 28. Kf2 {[%clk 0:00:50]}  Nf4 {[%clk 0:01:26]} 29. Re3 {[%clk 0:00:45]}  Bf5 {[%clk 0:01:19]} 30. Rxb7 {[%clk 0:00:36]}  Rd8 {[%clk 0:01:14]} 31. c6 {[%clk 0:00:34]}  Nxd5 {[%clk 0:01:12]} 32. cxd5 {[%clk 0:00:33]}  Rxd5 {[%clk 0:01:13]} 33. Rc3 {[%clk 0:00:32]}  Rd8 {[%clk 0:01:11]} 34. c7 {[%clk 0:00:32]}  Rc8 {[%clk 0:01:12]} 35. Rb8 {[%clk 0:00:32]}  Kg5 {[%clk 0:01:10]} 36. Rxc8 {[%clk 0:00:32]}  Bxc8 {[%clk 0:01:11]} 37. Rd3 {[%clk 0:00:31]}  Kf6 {[%clk 0:01:09]} 38. Rd8 {[%clk 0:00:30]}  Be6 {[%clk 0:01:08]} 39. c8=Q {[%clk 0:00:30]}  Bxc8 {[%clk 0:01:08]} 40. Rxc8 {[%clk 0:00:30]}  Ke6 {[%clk 0:01:09]} 41. Ke3 {[%clk 0:00:30]}  h5 {[%clk 0:01:08]} 42. Ke4 {[%clk 0:00:30]}  g5 {[%clk 0:01:08]} 43. Rc6+ {[%clk 0:00:29]} 1-0


[Site "https://www.chess.com"]

[Event "Titled Tuesday Blitz February 21 Early 2023"]
[White "Sarkar, Justin"]
[Black "Larina, Maria"]
[WhiteFideId "2010011"]
[BlackFideId "24113182"]
[WhiteElo "2309"]
[BlackElo "1948"]
[Result "1-0"]
[Round "10"]
[TimeControl "180+2"]
[Date "2023.02.21"]
[WhiteClock "0:00:05"]
[BlackClock "0:00:20"]

1. e4 {[%clk 0:02:28]}  c6 {[%clk 0:02:56]} 2. d4 {[%clk 0:02:25]}  d5 {[%clk 0:02:56]} 3. e5 {[%clk 0:02:21]}  c5 {[%clk 0:02:56]} 4. Nf3 {[%clk 0:02:10]}  Nc6 {[%clk 0:02:54]} 5. c4 {[%clk 0:01:54]}  cxd4 {[%clk 0:02:46]} 6. cxd5 {[%clk 0:01:51]}  Qxd5 {[%clk 0:02:41]} 7. Nc3 {[%clk 0:01:50]}  Qa5 {[%clk 0:02:34]} 8. Nxd4 {[%clk 0:01:45]}  Qxe5+ {[%clk 0:02:25]} 9. Be3 {[%clk 0:01:42]}  Nxd4 {[%clk 0:02:08]} 10. Qxd4 {[%clk 0:01:41]}  Qxd4 {[%clk 0:02:09]} 11. Bxd4 {[%clk 0:01:41]}  e6 {[%clk 0:01:45]} 12. Bb5+ {[%clk 0:01:23]}  Bd7 {[%clk 0:01:44]} 13. Bxd7+ {[%clk 0:01:21]}  Kxd7 {[%clk 0:01:45]} 14. O-O-O {[%clk 0:01:21]}  Kc8 {[%clk 0:01:24]} 15. Kb1 {[%clk 0:01:11]}  b6 {[%clk 0:01:13]} 16. Nb5 {[%clk 0:00:48]}  Kb7 {[%clk 0:00:58]} 17. Rc1 {[%clk 0:00:44]}  Rc8 {[%clk 0:00:34]} 18. Rxc8 {[%clk 0:00:26]}  Kxc8 {[%clk 0:00:34]} 19. Nd6+ {[%clk 0:00:23]}  Bxd6 {[%clk 0:00:28]} 20. Bxg7 {[%clk 0:00:23]}  Ne7 {[%clk 0:00:28]} 21. Bxh8 {[%clk 0:00:22]}  Kb7 {[%clk 0:00:26]} 22. Re1 {[%clk 0:00:18]}  Nd5 {[%clk 0:00:26]} 23. Be5 {[%clk 0:00:17]}  Bc5 {[%clk 0:00:26]} 24. f3 {[%clk 0:00:14]}  Ne3 {[%clk 0:00:24]} 25. Re2 {[%clk 0:00:13]}  Nf5 {[%clk 0:00:23]} 26. Re4 {[%clk 0:00:09]}  Kc6 {[%clk 0:00:21]} 27. Kc2 {[%clk 0:00:05]}  Kd5 {[%clk 0:00:21]} 28. Kd3 {[%clk 0:00:05]}  Be7 {[%clk 0:00:20]} 29. Re1 {[%clk 0:00:03]}  a5 {[%clk 0:00:20]} 30. Bc3 {[%clk 0:00:03]}  Bc5 {[%clk 0:00:18]} 31. Re5+ {[%clk 0:00:02]}  Kd6 {[%clk 0:00:18]} 32. Re4 {[%clk 0:00:02]}  Kd5 {[%clk 0:00:16]} 33. Rg4 {[%clk 0:00:02]}  Ne3 {[%clk 0:00:14]} 34. Rg7 {[%clk 0:00:02]}  f5 {[%clk 0:00:11]} 35. g4 {[%clk 0:00:02]}  fxg4 {[%clk 0:00:11]} 36. fxg4 {[%clk 0:00:02]}  Ng2 {[%clk 0:00:10]} 37. Rxh7 {[%clk 0:00:01]}  Nf4+ {[%clk 0:00:11]} 38. Kc2 {[%clk 0:00:02]}  Ke4 {[%clk 0:00:11]} 39. g5 {[%clk 0:00:02]}  Ng6 {[%clk 0:00:11]} 40. Rg7 {[%clk 0:00:02]}  Kf5 {[%clk 0:00:10]} 41. Bf6 {[%clk 0:00:02]}  Bf8 {[%clk 0:00:10]} 42. Rf7 {[%clk 0:00:02]}  Bc5 {[%clk 0:00:08]} 43. Rc7 {[%clk 0:00:02]}  Bd6 {[%clk 0:00:08]} 44. Rc6 {[%clk 0:00:02]}  Bc5 {[%clk 0:00:07]} 45. Rc8 {[%clk 0:00:02]}  e5 {[%clk 0:00:07]} 46. Re8 {[%clk 0:00:02]}  e4 {[%clk 0:00:07]} 47. Kd1 {[%clk 0:00:02]}  e3 {[%clk 0:00:08]} 48. h4 {[%clk 0:00:02]}  Nf4 {[%clk 0:00:08]} 49. h5 {[%clk 0:00:01]}  e2+ {[%clk 0:00:08]} 50. Kd2 {[%clk 0:00:01]}  Bb4+ {[%clk 0:00:09]} 51. Bc3 {[%clk 0:00:02]}  Bxc3+ {[%clk 0:00:09]} 52. bxc3 {[%clk 0:00:02]}  Kxg5 {[%clk 0:00:09]} 53. Rxe2 {[%clk 0:00:03]}  Nxh5 {[%clk 0:00:08]} 54. Re3 {[%clk 0:00:02]}  Nf4 {[%clk 0:00:08]} 55. Re4 {[%clk 0:00:02]}  Kf5 {[%clk 0:00:09]} 56. Ke3 {[%clk 0:00:02]}  Nd5+ {[%clk 0:00:09]} 57. Kd4 {[%clk 0:00:02]}  Nc7 {[%clk 0:00:09]} 58. Re5+ {[%clk 0:00:02]}  Kf6 {[%clk 0:00:09]} 59. Rh5 {[%clk 0:00:02]}  Ke6 {[%clk 0:00:09]} 60. Rh6+ {[%clk 0:00:02]}  Kd7 {[%clk 0:00:09]} 61. Rxb6 {[%clk 0:00:03]}  Ne6+ {[%clk 0:00:09]} 62. Kd5 {[%clk 0:00:03]}  Nc7+ {[%clk 0:00:08]} 63. Kc5 {[%clk 0:00:01]}  Ne6+ {[%clk 0:00:09]} 64. Kb5 {[%clk 0:00:01]}  Nc7+ {[%clk 0:00:09]} 65. Kxa5 {[%clk 0:00:01]}  Kc8 {[%clk 0:00:10]} 66. c4 {[%clk 0:00:02]}  Na8 {[%clk 0:00:10]} 67. c5 {[%clk 0:00:02]}  Nc7 {[%clk 0:00:11]} 68. Rc6 {[%clk 0:00:02]}  Kb7 {[%clk 0:00:11]} 69. Rxc7+ {[%clk 0:00:03]}  Kxc7 {[%clk 0:00:11]} 70. Kb5 {[%clk 0:00:03]}  Kb7 {[%clk 0:00:12]} 71. c6+ {[%clk 0:00:04]}  Kb8 {[%clk 0:00:13]} 72. Kb6 {[%clk 0:00:04]}  Kc8 {[%clk 0:00:14]} 73. a3 {[%clk 0:00:04]}  Kb8 {[%clk 0:00:14]} 74. a4 {[%clk 0:00:04]}  Ka8 {[%clk 0:00:15]} 75. a5 {[%clk 0:00:04]}  Kb8 {[%clk 0:00:16]} 76. a6 {[%clk 0:00:05]}  Ka8 {[%clk 0:00:17]} 77. Kc7 {[%clk 0:00:05]}  Ka7 {[%clk 0:00:17]} 78. Kd7 {[%clk 0:00:05]}  Ka8 {[%clk 0:00:18]} 79. c7 {[%clk 0:00:05]}  Ka7 {[%clk 0:00:18]} 80. Kc6 {[%clk 0:00:05]}  Ka8 {[%clk 0:00:19]} 81. c8=Q+ {[%clk 0:00:05]}  Ka7 {[%clk 0:00:20]} 82. Qb7# {[%clk 0:00:05]} 1-0


[Site "https://www.chess.com"]

[Event "Titled Tuesday Blitz February 21 Early 2023"]
[White "Winkels, Marcel"]
[Black "Da Silva Borges, Rodrigo"]
[WhiteFideId "1003887"]
[BlackFideId "2115778"]
[WhiteElo "1960"]
[BlackElo "2199"]
[Result "0-1"]
[Round "10"]
[TimeControl "180+2"]
[Date "2023.02.21"]
[WhiteClock "0:00:15"]
[BlackClock "0:00:22"]

1. e4 {[%clk 0:03:00]}  c5 {[%clk 0:02:59]} 2. Nf3 {[%clk 0:02:59]}  d6 {[%clk 0:02:59]} 3. d4 {[%clk 0:03:00]}  cxd4 {[%clk 0:03:00]} 4. Nxd4 {[%clk 0:03:00]}  Nf6 {[%clk 0:03:00]} 5. Nc3 {[%clk 0:03:00]}  a6 {[%clk 0:03:00]} 6. h3 {[%clk 0:03:01]}  e5 {[%clk 0:03:00]} 7. Nde2 {[%clk 0:03:00]}  h5 {[%clk 0:02:59]} 8. g3 {[%clk 0:02:56]}  b5 {[%clk 0:02:49]} 9. Bg2 {[%clk 0:02:55]}  Bb7 {[%clk 0:02:49]} 10. O-O {[%clk 0:02:52]}  Nbd7 {[%clk 0:02:36]} 11. Be3 {[%clk 0:02:44]}  Be7 {[%clk 0:02:33]} 12. Qd2 {[%clk 0:02:42]}  Rc8 {[%clk 0:02:33]} 13. Rad1 {[%clk 0:02:36]}  Qc7 {[%clk 0:02:32]} 14. f4 {[%clk 0:02:31]}  h4 {[%clk 0:02:11]} 15. a3 {[%clk 0:02:26]}  Nc5 {[%clk 0:01:59]} 16. Nd5 {[%clk 0:02:21]}  Bxd5 {[%clk 0:01:40]} 17. exd5 {[%clk 0:02:17]}  Nce4 {[%clk 0:01:36]} 18. Qe1 {[%clk 0:01:56]}  hxg3 {[%clk 0:00:34]} 19. fxe5 {[%clk 0:01:50]}  dxe5 {[%clk 0:00:33]} 20. Nxg3 {[%clk 0:01:49]}  Nxg3 {[%clk 0:00:33]} 21. Qxg3 {[%clk 0:01:49]}  Bc5 {[%clk 0:00:32]} 22. Kh1 {[%clk 0:01:27]}  Bxe3 {[%clk 0:00:32]} 23. Qxe3 {[%clk 0:01:25]}  Qd6 {[%clk 0:00:32]} 24. c3 {[%clk 0:01:17]}  O-O {[%clk 0:00:23]} 25. Rf5 {[%clk 0:01:14]}  Rfe8 {[%clk 0:00:23]} 26. Rdf1 {[%clk 0:01:06]}  Kf8 {[%clk 0:00:23]} 27. Qf3 {[%clk 0:00:57]}  e4 {[%clk 0:00:23]} 28. Qf4 {[%clk 0:00:46]}  Qxf4 {[%clk 0:00:21]} 29. R5xf4 {[%clk 0:00:44]}  e3 {[%clk 0:00:20]} 30. d6 {[%clk 0:00:39]}  Rcd8 {[%clk 0:00:20]} 31. Bc6 {[%clk 0:00:34]}  Re6 {[%clk 0:00:20]} 32. Re1 {[%clk 0:00:23]}  Rexd6 {[%clk 0:00:20]} 33. Bb7 {[%clk 0:00:19]}  Rd1 {[%clk 0:00:20]} 34. Rff1 {[%clk 0:00:17]}  e2 {[%clk 0:00:21]} 35. Rg1 {[%clk 0:00:15]}  Rxe1 {[%clk 0:00:21]} 36. Rxe1 {[%clk 0:00:15]}  Rd1 {[%clk 0:00:22]} 0-1


[Site "https://www.chess.com"]

[Event "Titled Tuesday Blitz February 21 Early 2023"]
[White "Ardila, Oscar Humberto"]
[Black "Calcada, Lucas Galvan"]
[WhiteFideId "4404742"]
[BlackFideId "22746099"]
[WhiteElo "1982"]
[BlackElo "1739"]
[Result "0-1"]
[Round "10"]
[TimeControl "180+2"]
[Date "2023.02.21"]
[WhiteClock "0:01:11"]
[BlackClock "0:01:06"]

1. d4 {[%clk 0:02:59]}  Nf6 {[%clk 0:02:16]} 2. c4 {[%clk 0:02:58]}  e6 {[%clk 0:02:15]} 3. Nc3 {[%clk 0:02:58]}  d5 {[%clk 0:02:15]} 4. cxd5 {[%clk 0:02:57]}  exd5 {[%clk 0:02:14]} 5. Bg5 {[%clk 0:02:57]}  Be7 {[%clk 0:02:15]} 6. Nf3 {[%clk 0:02:56]}  O-O {[%clk 0:02:15]} 7. e3 {[%clk 0:02:56]}  Bf5 {[%clk 0:02:14]} 8. Be2 {[%clk 0:02:54]}  c6 {[%clk 0:02:13]} 9. O-O {[%clk 0:02:54]}  Nbd7 {[%clk 0:02:12]} 10. Rc1 {[%clk 0:02:50]}  Re8 {[%clk 0:02:12]} 11. Na4 {[%clk 0:02:47]}  Nf8 {[%clk 0:02:10]} 12. Ne5 {[%clk 0:02:44]}  Ne6 {[%clk 0:02:10]} 13. Bh4 {[%clk 0:02:43]}  Ne4 {[%clk 0:02:09]} 14. Bxe7 {[%clk 0:02:41]}  Qxe7 {[%clk 0:02:10]} 15. Nc3 {[%clk 0:02:32]}  f6 {[%clk 0:02:06]} 16. Nf3 {[%clk 0:02:31]}  N6g5 {[%clk 0:01:50]} 17. Nxe4 {[%clk 0:02:27]}  Nxe4 {[%clk 0:01:48]} 18. Nd2 {[%clk 0:02:17]}  Qe6 {[%clk 0:01:45]} 19. Nxe4 {[%clk 0:02:16]}  Bxe4 {[%clk 0:01:44]} 20. Bf3 {[%clk 0:02:16]}  f5 {[%clk 0:01:41]} 21. g3 {[%clk 0:02:07]}  Bxf3 {[%clk 0:01:31]} 22. Qxf3 {[%clk 0:02:06]}  Qe4 {[%clk 0:01:31]} 23. Kg2 {[%clk 0:02:03]}  Re6 {[%clk 0:01:29]} 24. b4 {[%clk 0:02:02]}  a6 {[%clk 0:01:27]} 25. a4 {[%clk 0:02:02]}  Rae8 {[%clk 0:01:26]} 26. Qxe4 {[%clk 0:01:58]}  fxe4 {[%clk 0:01:25]} 27. Rb1 {[%clk 0:01:57]}  Rf6 {[%clk 0:01:25]} 28. Rb2 {[%clk 0:01:57]}  Ref8 {[%clk 0:01:23]} 29. b5 {[%clk 0:01:56]}  axb5 {[%clk 0:01:20]} 30. axb5 {[%clk 0:01:56]}  h5 {[%clk 0:01:20]} 31. bxc6 {[%clk 0:01:54]}  bxc6 {[%clk 0:01:21]} 32. h4 {[%clk 0:01:54]}  Rf3 {[%clk 0:01:20]} 33. Rc1 {[%clk 0:01:51]}  R8f6 {[%clk 0:01:19]} 34. Rc5 {[%clk 0:01:47]}  Kh7 {[%clk 0:01:15]} 35. Rbc2 {[%clk 0:01:47]}  g6 {[%clk 0:01:12]} 36. Kg1 {[%clk 0:01:32]}  Kh6 {[%clk 0:01:10]} 37. Rxc6 {[%clk 0:01:30]}  Rxf2 {[%clk 0:01:10]} 38. Rxf2 {[%clk 0:01:16]}  Rxc6 {[%clk 0:01:09]} 39. Rf6 {[%clk 0:01:11]}  Rxf6 {[%clk 0:01:06]} 0-1


[Site "https://www.chess.com"]

[Event "Titled Tuesday Blitz February 21 Early 2023"]
[White "Jaivardhan Raj"]
[Black "Broca Jimenez, Fernando"]
[WhiteFideId "25744437"]
[BlackFideId "5104742"]
[WhiteElo "1901"]
[BlackElo "2075"]
[Result "1-0"]
[Round "10"]
[TimeControl "180+2"]
[Date "2023.02.21"]
[WhiteClock "0:00:26"]
[BlackClock "0:00:01"]

1. e4 {[%clk 0:02:56]}  c5 {[%clk 0:02:59]} 2. Nf3 {[%clk 0:02:55]}  g6 {[%clk 0:02:59]} 3. d4 {[%clk 0:02:55]}  cxd4 {[%clk 0:02:59]} 4. Qxd4 {[%clk 0:02:55]}  Nf6 {[%clk 0:02:59]} 5. Nc3 {[%clk 0:02:55]}  Nc6 {[%clk 0:02:56]} 6. Qa4 {[%clk 0:02:55]}  Bg7 {[%clk 0:02:51]} 7. e5 {[%clk 0:02:44]}  Ng8 {[%clk 0:02:50]} 8. Bf4 {[%clk 0:02:44]}  Nh6 {[%clk 0:02:48]} 9. O-O-O {[%clk 0:02:42]}  O-O {[%clk 0:02:46]} 10. h3 {[%clk 0:02:42]}  Qa5 {[%clk 0:02:27]} 11. Qxa5 {[%clk 0:02:39]}  Nxa5 {[%clk 0:02:28]} 12. Nd5 {[%clk 0:02:37]}  Nc6 {[%clk 0:02:18]} 13. Bb5 {[%clk 0:02:27]}  e6 {[%clk 0:02:10]} 14. Ne3 {[%clk 0:02:06]}  Nf5 {[%clk 0:01:29]} 15. Nxf5 {[%clk 0:01:45]}  gxf5 {[%clk 0:01:30]} 16. g4 {[%clk 0:01:39]}  fxg4 {[%clk 0:01:17]} 17. hxg4 {[%clk 0:01:37]}  f6 {[%clk 0:01:15]} 18. Bxc6 {[%clk 0:01:11]}  bxc6 {[%clk 0:01:11]} 19. Bh6 {[%clk 0:01:08]}  fxe5 {[%clk 0:00:53]} 20. Bxg7 {[%clk 0:01:03]}  Rxf3 {[%clk 0:00:37]} 21. Bxe5 {[%clk 0:01:03]}  Rxf2 {[%clk 0:00:37]} 22. Rh6 {[%clk 0:00:56]}  d5 {[%clk 0:00:27]} 23. Rdh1 {[%clk 0:00:55]}  Rf7 {[%clk 0:00:20]} 24. Rg6+ {[%clk 0:00:50]}  Kf8 {[%clk 0:00:18]} 25. Rgh6 {[%clk 0:00:37]}  Ba6 {[%clk 0:00:10]} 26. Rxh7 {[%clk 0:00:36]}  Rxh7 {[%clk 0:00:09]} 27. Rxh7 {[%clk 0:00:36]}  Re8 {[%clk 0:00:08]} 28. g5 {[%clk 0:00:27]}  Be2 {[%clk 0:00:04]} 29. g6 {[%clk 0:00:26]}  Kg8 {[%clk 0:00:01]} 30. Rh8# {[%clk 0:00:26]} 1-0


[Site "https://www.chess.com"]

[Event "Titled Tuesday Blitz February 21 Early 2023"]
[White "Suduvasachmatai"]
[Black "Seifert, Henryk"]
[BlackFideId "1100963"]
[WhiteElo "2100"]
[BlackElo "2106"]
[Result "0-1"]
[Round "10"]
[TimeControl "180+2"]
[Date "2023.02.21"]
[WhiteClock "0:00:37"]
[BlackClock "0:00:04"]

1. e4 {[%clk 0:02:58]}  e6 {[%clk 0:02:59]} 2. d4 {[%clk 0:02:57]}  d5 {[%clk 0:03:00]} 3. e5 {[%clk 0:02:50]}  c5 {[%clk 0:02:59]} 4. c3 {[%clk 0:02:50]}  Nc6 {[%clk 0:02:59]} 5. Nf3 {[%clk 0:02:50]}  Qb6 {[%clk 0:02:59]} 6. Bd3 {[%clk 0:02:49]}  cxd4 {[%clk 0:02:56]} 7. cxd4 {[%clk 0:02:44]}  Bd7 {[%clk 0:02:56]} 8. Bc2 {[%clk 0:02:44]}  Nb4 {[%clk 0:02:53]} 9. O-O {[%clk 0:02:35]}  Nxc2 {[%clk 0:02:52]} 10. Qxc2 {[%clk 0:02:32]}  Rc8 {[%clk 0:02:52]} 11. Nc3 {[%clk 0:02:23]}  Ne7 {[%clk 0:02:50]} 12. Qb3 {[%clk 0:02:17]}  Qxb3 {[%clk 0:02:47]} 13. axb3 {[%clk 0:02:11]}  a6 {[%clk 0:02:48]} 14. Bf4 {[%clk 0:02:05]}  Nc6 {[%clk 0:02:39]} 15. Na4 {[%clk 0:02:03]}  Be7 {[%clk 0:02:25]} 16. Nb6 {[%clk 0:01:58]}  Rd8 {[%clk 0:02:24]} 17. h3 {[%clk 0:01:46]}  h6 {[%clk 0:02:22]} 18. Rfc1 {[%clk 0:01:41]}  O-O {[%clk 0:02:22]} 19. Rc3 {[%clk 0:01:33]}  Bb4 {[%clk 0:02:14]} 20. Rd3 {[%clk 0:01:32]}  Ba5 {[%clk 0:02:10]} 21. Na4 {[%clk 0:01:30]}  b6 {[%clk 0:01:37]} 22. Bd2 {[%clk 0:01:25]}  Rb8 {[%clk 0:01:22]} 23. Bxa5 {[%clk 0:01:23]}  Nxa5 {[%clk 0:01:05]} 24. Nxb6 {[%clk 0:01:21]}  Rxb6 {[%clk 0:00:58]} 25. Rxa5 {[%clk 0:01:19]}  Rfb8 {[%clk 0:00:53]} 26. Ra3 {[%clk 0:01:17]}  g5 {[%clk 0:00:45]} 27. Nd2 {[%clk 0:01:13]}  Kg7 {[%clk 0:00:43]} 28. Rc3 {[%clk 0:01:12]}  R8b7 {[%clk 0:00:42]} 29. Ra5 {[%clk 0:01:08]}  Rb4 {[%clk 0:00:37]} 30. Rac5 {[%clk 0:01:08]}  Rxd4 {[%clk 0:00:35]} 31. Nf3 {[%clk 0:01:07]}  Rdb4 {[%clk 0:00:30]} 32. Nd2 {[%clk 0:01:05]}  Bb5 {[%clk 0:00:18]} 33. Rc7 {[%clk 0:00:59]}  Rxc7 {[%clk 0:00:17]} 34. Rxc7 {[%clk 0:00:59]}  Kg6 {[%clk 0:00:16]} 35. g4 {[%clk 0:00:56]}  h5 {[%clk 0:00:15]} 36. f3 {[%clk 0:00:56]}  h4 {[%clk 0:00:14]} 37. Kf2 {[%clk 0:00:55]}  Rd4 {[%clk 0:00:13]} 38. Nb1 {[%clk 0:00:49]}  Rd1 {[%clk 0:00:11]} 39. Nc3 {[%clk 0:00:44]}  Rd2+ {[%clk 0:00:11]} 40. Ke3 {[%clk 0:00:43]}  Rxb2 {[%clk 0:00:11]} 41. Nxb5 {[%clk 0:00:43]}  axb5 {[%clk 0:00:12]} 42. Rc3 {[%clk 0:00:43]}  b4 {[%clk 0:00:12]} 43. Rd3 {[%clk 0:00:43]}  f6 {[%clk 0:00:12]} 44. Kd4 {[%clk 0:00:43]}  f5 {[%clk 0:00:09]} 45. Kc5 {[%clk 0:00:40]}  Rh2 {[%clk 0:00:08]} 46. Kxb4 {[%clk 0:00:38]}  Rxh3 {[%clk 0:00:07]} 47. Kc5 {[%clk 0:00:38]}  fxg4 {[%clk 0:00:07]} 48. b4 {[%clk 0:00:37]}  Rxf3 {[%clk 0:00:06]} 49. Rd4 {[%clk 0:00:38]}  g3 {[%clk 0:00:05]} 50. Kd6 {[%clk 0:00:37]}  g2 {[%clk 0:00:05]} 51. Rg4 {[%clk 0:00:37]}  Rg3 {[%clk 0:00:04]} 0-1


[Site "https://www.chess.com"]